fUSD/lending_fUSD_20250824
["ID","MTS","AMOUNT","RATE_DAILY","PERIOD"]
[381111308,1756048272979,-1324.07,0.00023561,2]
[381111309,1756048272989,-1363.26,0.00023561,2]
[381111310,1756048272998,-597.1,0.00023561,2]
[381111311,1756048273007,-1035.67,0.00023561,2]
[381111312,1756048273016,-938.79,0.00023561,2]
[381111313,1756048273025,-400.0,0.00023561,2]
[381111314,1756048273034,-1180.53,0.00023561,2]
[381111315,1756048273044,-1193.88,0.00023561,2]
[381111316,1756048273053,-840.64,0.00023561,2]
[381111317,1756048273063,-529.08764153,0.00023561,2]
[381111318,1756048273072,-994.16,0.00023561,2]
[381111319,1756048273082,-400.0,0.00023561,2]
[381111320,1756048273091,-6067.37,0.00023561,2]
[381111321,1756048273101,-1141.53,0.00023561,2]
[381111322,1756048273110,-1958.66,0.00023561,2]
[381111323,1756048273119,-1241.77,0.00023561,2]
[381111324,1756048273128,-912.12,0.00023561,2]
[381111325,1756048273138,-949.95,0.00023561,2]
[381111326,1756048273147,-2951.91,0.00023561,2]
[381111327,1756048273156,-792.45,0.00023561,2]
[381111328,1756048273166,-2276.74,0.00023561,2]
[381111329,1756048273175,-595.08,0.00023561,2]
[381111330,1756048273190,-589.71,0.00023561,2]
[381111331,1756048273199,-1113.91,0.00023561,2]
[381111332,1756048273209,-5112.41,0.00023561,2]
[381111333,1756048273219,-1320.28,0.00023561,2]
[381111334,1756048273230,-1073.93,0.00023561,2]
[381111335,1756048273239,-678.72,0.00023561,2]
[381111336,1756048273249,-400.0,0.00023561,2]
[381111337,1756048273260,-1080.22,0.00023561,2]
[381111338,1756048273270,-1512.46,0.00023561,2]
[381111339,1756048273279,-2012.13,0.00023561,2]
[381111340,1756048273288,-1244.54,0.00023561,2]
[381111341,1756048273297,-686.05,0.00023561,2]
[381111342,1756048273307,-960.14,0.00023561,2]
[381111343,1756048273316,-1207.24,0.00023561,2]
[381111344,1756048273325,-1383.97,0.00023561,2]
[381111345,1756048273334,-2129.76,0.00023561,2]
[381111346,1756048273344,-1390.93,0.00023561,2]
[381111347,1756048273353,-992.27,0.00023561,2]
[381111348,1756048273363,-1447.01,0.00023561,2]
[381111349,1756048273372,-3365.74,0.00023561,2]
[381111350,1756048273382,-151.0,0.00023561,7]
[381111351,1756048273391,-5000.0,0.00023569,2]
[381111352,1756048273401,-1000.0,0.000236,2]
[381111354,1756048273411,-463.47713563,0.00023639,2]
[381111355,1756048273420,-154.59098325,0.00023663,2]
[381111356,1756048273429,-160.05,0.00023726,2]
[381111357,1756048273439,-150.0,0.00023761,2]
[381111358,1756048273449,-899.07,0.00023762,2]
[381111359,1756048273458,-795.46,0.00023762,2]
[381111360,1756048273467,-400.0,0.00023762,2]
[381111361,1756048273477,-580.49,0.00023762,2]
[381111362,1756048273486,-400.0,0.00023762,2]
[381111363,1756048273495,-400.0,0.00023762,2]
[381111364,1756048273505,-400.0,0.00023762,2]
[381111365,1756048273514,-400.0,0.00023762,2]
[381111366,1756048273523,-400.0,0.00023762,2]
[381111367,1756048273532,-698.47,0.00023762,2]
[381111368,1756048273541,-400.0,0.00023762,2]
[381111369,1756048273551,-400.0,0.00023762,2]
[381111370,1756048273560,-1146.37,0.00023762,2]
[381111371,1756048273570,-1298.53,0.00023762,2]
[381111372,1756048273579,-400.0,0.00023762,2]
[381111373,1756048273589,-508.37,0.00023762,2]
[381111374,1756048273598,-935.95,0.00023762,2]
[381111375,1756048273608,-400.0,0.00023762,2]
[381111376,1756048273617,-400.0,0.00023762,2]
[381111377,1756048273627,-400.0,0.00023762,2]
[381111378,1756048273637,-400.0,0.00023762,2]
[381111379,1756048273646,-400.0,0.00023762,2]
[381111380,1756048273655,-400.0,0.00023762,2]
[381111381,1756048273665,-400.0,0.00023762,2]
[381111382,1756048273674,-400.0,0.00023762,2]
[381111383,1756048273683,-785.35,0.00023762,2]
[381111384,1756048273694,-400.0,0.00023762,2]
[381111385,1756048273703,-400.0,0.00023762,2]
[381111386,1756048273712,-1182.85,0.00023762,2]
[381111387,1756048273721,-400.0,0.00023762,2]
[381111388,1756048273731,-622.97,0.00023762,2]
[381111389,1756048273740,-400.0,0.00023762,2]
[381111390,1756048273749,-468.85,0.00023762,2]
[381111391,1756048273758,-400.0,0.00023762,2]
[381111392,1756048273768,-404.09007512,0.00023762,2]
[381111393,1756048273777,-400.0,0.00023762,2]
[381111394,1756048273787,-511.68,0.00023762,2]
[381111395,1756048273796,-1015.61,0.00023762,2]
[381111396,1756048273805,-400.0,0.00023762,2]
[381111397,1756048273815,-400.0,0.00023762,2]
[381111398,1756048273824,-400.0,0.00023762,2]
[381111399,1756048273834,-698.2,0.00023762,2]
[381111400,1756048273843,-400.0,0.00023762,2]
[381111401,1756048273853,-400.0,0.00023762,2]
[381111402,1756048273863,-403.99,0.00023762,2]
[381111403,1756048273872,-239.2468935,0.00023762,2]
[381111404,1756048273882,-493.78829814,0.00023762,2]
[381111405,1756048273891,-773.21,0.00023762,2]
[381111406,1756048273901,-400.0,0.00023762,2]
[381111407,1756048273910,-400.0,0.00023762,2]
[381111408,1756048273919,-400.0,0.00023762,2]
[381111409,1756048273928,-401.23834847,0.00023762,2]
[381111410,1756048273938,-1484.93,0.00023762,2]
[381111411,1756048273948,-1058.28,0.00023762,2]
[381111412,1756048273958,-400.0,0.00023762,2]
[381111413,1756048273967,-400.0,0.00023762,2]
[381111414,1756048273976,-1166.08,0.00023762,2]
[381111415,1756048273986,-400.0,0.00023762,2]
[381111416,1756048273995,-400.0,0.00023762,2]
[381111417,1756048274005,-400.0,0.00023762,2]
[381111418,1756048274014,-401.33748632,0.00023762,2]
[381111419,1756048274023,-401.62648124,0.00023762,2]
[381111420,1756048274032,-718.95,0.00023762,2]
[381111421,1756048274041,-400.0,0.00023762,2]
[381111422,1756048274051,-1741.53,0.00023762,2]
[381111423,1756048274060,-400.0,0.00023762,2]
[381111424,1756048274069,-400.0,0.00023762,2]
[381111425,1756048274079,-400.0,0.00023762,2]
[381111426,1756048274088,-400.0,0.00023762,2]
[381111427,1756048274097,-400.0,0.00023762,2]
[381111428,1756048274106,-400.0,0.00023762,2]
[381111429,1756048274115,-400.0,0.00023762,2]
[381111430,1756048274124,-400.0,0.00023762,2]
[381111431,1756048274134,-987.57,0.00023762,2]
[381111432,1756048274143,-400.0,0.00023762,2]
[381111433,1756048274153,-1053.31,0.00023762,2]
[381111434,1756048274163,-400.0,0.00023762,2]
[381111435,1756048274172,-400.0,0.00023762,2]
[381111436,1756048274182,-503.2292673,0.00023762,2]
[381111437,1756048274195,-1110.29,0.00023762,2]
[381111438,1756048274204,-691.03,0.00023762,2]
[381111439,1756048274214,-402.94135545,0.00023762,2]
[381111440,1756048274223,-400.0,0.00023762,2]
[381111441,1756048274235,-400.0,0.00023762,2]
[381111442,1756048274244,-626.31,0.00023762,2]
[381111443,1756048274253,-400.0,0.00023762,2]
[381111444,1756048274265,-1014.28,0.00023762,2]
[381111445,1756048274275,-400.0,0.00023762,2]
[381111446,1756048274286,-612.3,0.00023762,2]
[381111447,1756048274296,-400.0,0.00023762,2]
[381111448,1756048274305,-955.81,0.00023762,2]
[381111449,1756048274315,-400.0,0.00023762,2]
[381111450,1756048274325,-1097.21,0.00023762,2]
[381111451,1756048274335,-500.92892512,0.00023762,2]
[381111452,1756048274346,-640.44,0.00023762,2]
[381111453,1756048274355,-583.22,0.00023762,2]
[381111454,1756048274365,-400.0,0.00023762,2]
[381111455,1756048274376,-400.0,0.00023762,2]
[381111456,1756048274386,-400.0,0.00023762,2]
[381111457,1756048274397,-400.0,0.00023762,2]
[381111458,1756048274407,-400.0,0.00023762,2]
[381111459,1756048274418,-400.0,0.00023762,2]
[381111460,1756048274428,-400.0,0.00023762,2]
[381111461,1756048274437,-1187.0,0.00023762,2]
[381111462,1756048274448,-1284.67,0.00023762,2]
[381111463,1756048274458,-400.0,0.00023762,2]
[381111464,1756048274468,-400.0,0.00023762,2]
[381111465,1756048274477,-400.0,0.00023762,2]
[381111466,1756048274487,-400.0,0.00023762,2]
[381111467,1756048274497,-400.0,0.00023762,2]
[381111468,1756048274506,-400.0,0.00023762,2]
[381111469,1756048274516,-400.0,0.00023762,2]
[381111470,1756048274525,-759.47,0.00023762,2]
[381111471,1756048274535,-589.81,0.00023762,2]
[381111472,1756048274545,-400.0,0.00023762,2]
[381111473,1756048274554,-1260.18,0.00023762,2]
[381111474,1756048274564,-400.0,0.00023762,2]
[381111475,1756048274574,-400.0,0.00023762,2]
[381111476,1756048274583,-401.09256078,0.00023762,2]
[381111477,1756048274593,-400.0,0.00023762,2]
[381111478,1756048274604,-432.46,0.00023762,2]
[381111479,1756048274615,-139.2129047,0.00023762,2]
[381111486,1756048400030,465.774688,0.00028766,120]
[381111513,1756048756137,2000.0,0.00028767,120]
[381111520,1756048820383,900.96004607,0.00028767,120]
[381111521,1756048821376,154533.72204527,0.00021,30]
[381111522,1756048874614,907.543407,0.0002876,120]
[381111528,1756048945982,1938.5386,0.0002876,120]
[381111532,1756049068651,2000.0,0.00028767,120]
[381111534,1756049108701,60000.0,0.00012,2]
[381111535,1756049108735,697857.66924656,0.00012,2]
[381111536,1756049108768,29023.41,0.00012,2]
[381111537,1756049108811,1600000.0,0.00012,2]
[381111538,1756049144250,2418.896646,0.00028767,120]
[381111541,1756049231441,500.0,0.000116,4]
[381111542,1756049233627,1100.0,0.000117,4]
[381111544,1756049235787,1700.0,0.000118,4]
[381111546,1756049237903,2200.0,0.000119,4]
[381111552,1756049257535,-251.93530745,0.000118,2]
[381111555,1756049293082,166.02049544,0.00028767,120]
[381111564,1756049396552,479.45207346,0.00028,120]
[381111569,1756049432574,-1182.29582589,0.000118,2]
[381111570,1756049432587,-3105.11249078,0.000118,2]
[381111571,1756049432598,-400.0,0.00011899,2]
[381111572,1756049432607,-300.0,0.00011899,2]
[381111573,1756049432617,-300.0,0.00011899,2]
[381111574,1756049432627,-1200.0,0.00011899,2]
[381111575,1756049432636,-150.0,0.00011899,2]
[381111576,1756049432646,-3404.05896087,0.000119,2]
[381111577,1756049432658,-2032.49638822,0.000119,2]
[381111578,1756049432741,-2105.8407555,0.000119,2]
[381111579,1756049432751,-1021.50441433,0.000119,2]
[381111582,1756049432762,-6174.17423473,0.000119,2]
[381111584,1756049432775,-2946.79236985,0.000119,2]
[381111586,1756049432784,-166.51872196,0.000119,2]
[381111587,1756049432793,-599.71901914,0.000119,2]
[381111589,1756049432805,-255.4510097,0.000119,2]
[381111591,1756049432814,-565.24807974,0.000119,2]
[381111593,1756049432824,-170.73550434,0.000119,2]
[381111595,1756049432833,-253.03252996,0.000119,2]
[381111596,1756049432843,-366.74212805,0.00011973,2]
[381111597,1756049432853,-500.0,0.00011973,2]
[381111598,1756049432862,-327.44063252,0.00011973,2]
[381111599,1756049432872,-500.0,0.00011973,2]
[381111600,1756049432882,-500.0,0.00011973,2]
[381111601,1756049432892,-500.0,0.00011973,2]
[381111602,1756049432901,-500.0,0.00011973,2]
[381111603,1756049432911,-500.0,0.00011973,2]
[381111604,1756049432920,-500.0,0.00011973,2]
[381111606,1756049432930,-500.0,0.00011973,2]
[381111608,1756049432940,-500.70659059,0.00011973,2]
[381111610,1756049432950,-500.0,0.00011973,2]
[381111612,1756049432960,-500.93692735,0.00011973,2]
[381111614,1756049432971,-500.0,0.00011973,2]
[381111616,1756049432981,-159.48096465,0.00011973,2]
[381111618,1756049432990,-500.0,0.00011973,2]
[381111620,1756049433000,-427.46565458,0.00011999,2]
[381111622,1756049433010,-332.19987729,0.00011999,2]
[381111624,1756049433019,-500.0,0.00011999,2]
[381111626,1756049433029,-500.0,0.00011999,2]
[381111628,1756049433038,-571.5355319,0.00011999,2]
[381111630,1756049433048,-500.0,0.00011999,2]
[381111632,1756049433058,-260.80274277,0.00011999,2]
[381111634,1756049433068,-577.0066143,0.00011999,2]
[381111636,1756049433078,-429.51117825,0.00011999,2]
[381111638,1756049433088,-500.0,0.00011999,2]
[381111640,1756049433098,-561.39144199,0.00011999,2]
[381111642,1756049433108,-93737.36256865,0.00012,2]
[381111645,1756049433121,-312.13489786,0.00012,2]
[381111646,1756049433244,-844143.55772087,0.00012,2]
[381111647,1756049433256,-1377.81570734,0.00012,2]
[381111648,1756049433267,-366.35403126,0.00012,2]
[381111649,1756049433290,-1033.63361294,0.00012,2]
[381111650,1756049433301,-592.3,0.00012,2]
[381111651,1756049433313,-826.18749567,0.00012,2]
[381111652,1756049433356,-20349.19204205,0.00012,2]
[381111653,1756049433368,-969.19187044,0.00012,2]
[381111654,1756049433380,-2927.46304358,0.00012,2]
[381111655,1756049433392,-1063.52649688,0.00012,2]
[381111656,1756049433404,-339.66691684,0.00012,2]
[381111659,1756049438284,500.0,0.000287,120]
[381111660,1756049438379,-205.98474729,0.0001199,2]
[381111661,1756049438389,-44.90140262,0.00012,2]
[381111662,1756049438400,-11933.65500001,0.00012,2]
[381111663,1756049438650,-103175.87524252,0.00012,2]
[381111664,1756049438661,-2021.58959784,0.00012,2]
[381111665,1756049438672,-2300.84577893,0.00012,2]
[381111666,1756049438683,-2321.0,0.00012,2]
[381111667,1756049438794,-6343.14395247,0.00012,2]
[381111668,1756049438821,-8937.51464379,0.00012,2]
[381111696,1756049440231,-1069.07337557,0.00012,2]
[381111697,1756049440243,-265.07720004,0.00012,2]
[381111698,1756049440254,-423.99500004,0.00012,2]
[381111699,1756049440266,-503.11122063,0.00012,2]
[381111700,1756049440298,-23608.33983301,0.00012,2]
[381111702,1756049440554,-76358.46210319,0.00012,2]
[381111735,1756049444126,-336.73540175,0.00012,2]
[381111736,1756049444139,-365.47907986,0.00012,2]
[381111737,1756049444151,-241498.70262158,0.00012,2]
[381111738,1756049444222,-841.80024,0.00012,2]
[381111739,1756049444236,-24242.12346098,0.00012,2]
[381111740,1756049444247,-823.39241101,0.00012,2]
[381111754,1756049446293,-995.35781348,0.00012,2]
[381111755,1756049446304,-1207.01899999,0.00012,2]
[381111756,1756049446393,-422.3538,0.00012,2]
[381111757,1756049446404,-5753.24750001,0.00012,2]
[381111758,1756049446428,-1066.129332,0.00012,2]
[381111759,1756049446453,-2401.7999998,0.00012,2]
[381111760,1756049446486,-568847.49994242,0.00012,2]
[381111761,1756049446499,-4994.50326722,0.00012,2]
[381111762,1756049446634,-4629.00000019,0.00012,2]
[381111763,1756049446646,-1936.11284,0.00012,2]
[381111764,1756049446658,-2315.25,0.00012,2]
[381111765,1756049446670,-11214.19224342,0.00012,2]
[381111766,1756049446682,-2499.9999,0.00012,2]
[381111782,1756049447919,-1369.965001,0.00012,2]
[381111783,1756049450355,441.0,0.000287,120]
[381111794,1756049578104,-200.0,0.0001176,2]
[381111795,1756049581755,-146.187,0.0001176,2]
[381111796,1756049618304,1026.29763777,0.00011999,3]
[381111807,1756049942101,600.0,0.00028767,120]
[381111808,1756049942491,600.0,0.00028767,120]
[381111809,1756049942759,600.0,0.00028767,120]
[381111810,1756049943039,600.0,0.00028767,120]
[381111811,1756049943738,600.0,0.00028767,120]
[381111812,1756049944151,600.0,0.00028767,120]
[381111813,1756049944594,600.0,0.00028767,120]
[381111814,1756049944811,600.0,0.00028767,120]
[381111815,1756049950431,600.0,0.00028767,120]
[381111816,1756049950776,600.0,0.00028767,120]
[381111817,1756049951317,731.97074569,0.00028767,120]
[381111818,1756049955328,4000.0,0.000287,120]
[381111819,1756049969882,-211.61029531,0.0001176,2]
[381111820,1756049969905,-151.0,0.0001176,2]
[381111821,1756049969931,-1523.0,0.00011864,2]
[381111822,1756049969955,-300.0,0.00011866,2]
[381111823,1756049969978,-300.0,0.00011899,2]
[381111824,1756049970002,-1200.0,0.00011899,2]
[381111825,1756049970027,-500.0,0.00011899,2]
[381111826,1756049970051,-300.0,0.00011899,2]
[381111827,1756049970075,-150.0,0.00011899,2]
[381111828,1756049970096,-297.6064643,0.00011899,2]
[381111829,1756049970120,-5066.78324039,0.000119,2]
[381111835,1756050154487,-155.73751187,0.00011521,2]
[381111836,1756050157892,-706.60115469,0.00011521,2]
[381111837,1756050157918,-330.44486521,0.00011888,2]
[381111838,1756050157944,-1200.0,0.00011899,2]
[381111839,1756050157969,-300.0,0.00011899,2]
[381111840,1756050157994,-374.414,0.00011899,2]
[381111841,1756050158019,-150.0,0.00011899,2]
[381111842,1756050158044,-10528.39184618,0.000119,2]
[381111843,1756050158069,-6410.14813392,0.000119,2]
[381111844,1756050194988,-17619.35611229,0.000119,2]
[381111845,1756050195012,-170.73550432,0.000119,2]
[381111846,1756050195036,-166.5187219,0.000119,2]
[381111847,1756050195058,-150.0,0.00011936,2]
[381111848,1756050195082,-250.0,0.00011936,2]
[381111849,1756050195106,-300.0,0.00011936,2]
[381111850,1756050195129,-502.05587452,0.00011973,2]
[381111851,1756050195152,-169.30600102,0.00011973,2]
[381111852,1756050195174,-504.1994014,0.00011973,2]
[381111853,1756050195195,-566.54497669,0.00011973,2]
[381111854,1756050195218,-343.1666302,0.00011973,2]
[381111855,1756050195240,-500.0,0.00011973,2]
[381111856,1756050195262,-500.0,0.00011973,2]
[381111857,1756050195285,-501.21214153,0.00011973,2]
[381111858,1756050195306,-500.0,0.00011973,2]
[381111859,1756050195328,-500.0,0.00011973,2]
[381111860,1756050195352,-500.0,0.00011973,2]
[381111861,1756050195375,-500.0,0.00011973,2]
[381111862,1756050195399,-500.0,0.00011973,2]
[381111863,1756050195421,-500.0,0.00011973,2]
[381111864,1756050195444,-500.0,0.00011973,2]
[381111865,1756050195468,-26483.53551979,0.0001199,2]
[381111866,1756050195491,-537.23681633,0.0001199,2]
[381111867,1756050195514,-500.0,0.00011993,2]
[381111868,1756050195537,-215.0738,0.00011993,2]
[381111869,1756050195560,-500.0,0.00011993,2]
[381111870,1756050195584,-500.0,0.00011993,2]
[381111871,1756050195608,-337.72751267,0.00011993,2]
[381111872,1756050195632,-500.0,0.00011993,2]
[381111873,1756050195656,-500.0,0.00011993,2]
[381111874,1756050195679,-500.0,0.00011993,2]
[381111875,1756050195702,-500.0,0.00011993,2]
[381111876,1756050195725,-500.0,0.00011993,2]
[381111877,1756050195749,-500.0,0.00011993,2]
[381111878,1756050195772,-500.0,0.00011993,2]
[381111879,1756050195795,-500.0,0.00011993,2]
[381111880,1756050195819,-500.0,0.00011993,2]
[381111881,1756050195843,-500.0,0.00011993,2]
[381111882,1756050195874,-183.33098734,0.00011993,2]
[381111885,1756050239996,-505.46295953,0.00011973,2]
[381111886,1756050240022,-269.29286367,0.00011973,2]
[381111887,1756050240046,-316.66901266,0.00011993,2]
[381111888,1756050240071,-500.0,0.00011993,2]
[381111889,1756050240094,-151.0,0.00011993,2]
[381111890,1756050240120,-151.0,0.00011993,2]
[381111891,1756050240144,-151.0,0.00011993,2]
[381111892,1756050240167,-151.0,0.00011993,2]
[381111893,1756050240190,-151.0,0.00011993,2]
[381111894,1756050240214,-151.0,0.00011993,2]
[381111895,1756050240238,-151.0,0.00011993,2]
[381111896,1756050240262,-151.0,0.00011993,2]
[381111897,1756050240286,-151.0,0.00011993,2]
[381111898,1756050240310,-151.0,0.00011993,2]
[381111899,1756050240333,-151.0,0.00011993,2]
[381111900,1756050240356,-151.0,0.00011993,2]
[381111901,1756050240379,-151.0,0.00011993,2]
[381111902,1756050240402,-151.0,0.00011993,2]
[381111903,1756050240425,-294.57516414,0.00011999,2]
[381111912,1756050436875,300.0,0.000117,4]
[381111913,1756050438966,700.0,0.000118,4]
[381111914,1756050441147,1100.0,0.000119,4]
[381112011,1756050518226,162.00258,0.0002876,120]
[381112172,1756050631584,-1000.0,0.00011451,2]
[381112173,1756050631594,-299.3750435,0.00011798,2]
[381112174,1756050631603,-185.00959503,0.00011888,2]
[381112176,1756050631613,-166.13773933,0.00011888,2]
[381112177,1756050631622,-150.0,0.00011898,2]
[381112178,1756050631631,-300.0,0.00011898,2]
[381112179,1756050631640,-1200.0,0.00011898,2]
[381112180,1756050631650,-4904.82211218,0.00011899,2]
[381112181,1756050631661,-831.59360847,0.00011899,2]
[381112182,1756050631672,-14434.0824058,0.00011899,2]
[381112183,1756050631729,-1456.05569513,0.00011899,2]
[381112184,1756050631739,-14035.65757794,0.00011899,2]
[381112185,1756050631748,-159.54900556,0.000119,2]
[381112186,1756050631758,-484.49835408,0.000119,2]
[381112187,1756050631768,-161.11524865,0.00011972,2]
[381112188,1756050631778,-267.41430741,0.00011972,2]
[381112189,1756050631788,-170.27491792,0.00011972,2]
[381112190,1756050631797,-500.0,0.00011973,2]
[381112191,1756050631807,-500.83640431,0.00011973,2]
[381112192,1756050631817,-500.0,0.00011973,2]
[381112193,1756050631827,-500.0,0.00011973,2]
[381112194,1756050631836,-500.0,0.00011973,2]
[381112195,1756050631846,-500.0,0.00011973,2]
[381112196,1756050631857,-384.72559185,0.00011987,2]
[381112197,1756050631867,-500.0,0.00011987,2]
[381112198,1756050631876,-400.73269711,0.00011987,2]
[381112199,1756050631886,-500.0,0.00011987,2]
[381112200,1756050631895,-298.80274561,0.00011987,2]
[381112201,1756050631905,-110872.61207062,0.00011988,2]
[381112202,1756050631918,-609.45777321,0.00011988,2]
[381112203,1756050631929,-443.2802,0.00011988,2]
[381112204,1756050631980,-463.47800865,0.00011988,2]
[381112205,1756050631992,-1759.24015614,0.00011988,2]
[381112206,1756050632004,-480.46360534,0.00011988,2]
[381112207,1756050632015,-1772.89613506,0.00011988,2]
[381112208,1756050632074,-768.42004454,0.00011988,2]
[381112209,1756050632086,-382552.31823226,0.00011988,2]
[381112210,1756050632097,-75361.67627702,0.00011988,2]
[381112234,1756050637626,-305.97459376,0.00011988,2]
[381112235,1756050637639,-138793.3915712,0.00011988,2]
[381112236,1756050637649,-22904.3982378,0.00011988,2]
[381112237,1756050637660,-1186.7600818,0.00011988,2]
[381112238,1756050637670,-15549.8012358,0.00011988,2]
[381112239,1756050637680,-358.15787756,0.0001199,2]
[381112240,1756050637690,-500.0,0.00011993,2]
[381112241,1756050637700,-151.0,0.00011993,2]
[381112242,1756050637710,-151.0,0.00011993,2]
[381112243,1756050637720,-151.0,0.00011993,2]
[381112244,1756050637730,-151.0,0.00011993,2]
[381112245,1756050637739,-151.0,0.00011993,2]
[381112246,1756050637749,-151.0,0.00011993,2]
[381112247,1756050637763,-151.0,0.00011993,2]
[381112248,1756050637772,-198.0,0.00011993,2]
[381112249,1756050637782,-223.51972787,0.00011993,2]
[381112250,1756050637791,-151.0,0.00011993,2]
[381112251,1756050637801,-12.2585659,0.00011999,2]
[381112252,1756050637811,-1247764.58528352,0.00012,2]
[381112253,1756050637825,-6812.09,0.00012,2]
[381112254,1756050637835,-472.83166006,0.00012,2]
[381112255,1756050637846,-3402.58144,0.00012,2]
[381112256,1756050637856,-500.0,0.00012048,2]
[381112257,1756050637866,-500.0,0.00012103,2]
[381112258,1756050637876,-500.0,0.00012158,2]
[381112259,1756050637887,-500.0,0.00012213,2]
[381112260,1756050637896,-500.0,0.00012268,2]
[381112261,1756050637907,-1108.1046,0.00012301,2]
[381112262,1756050637916,-3402.58144,0.0001232,2]
[381112263,1756050637926,-500.0,0.00012323,2]
[381112264,1756050637936,-854.0,0.00012367,2]
[381112265,1756050637946,-220.98221094,0.00012367,2]
[381112266,1756050637956,-500.0,0.00012378,2]
[381112267,1756050637966,-175.0,0.00012422,2]
[381112268,1756050637975,-353.0,0.00012423,2]
[381112269,1756050637985,-500.0,0.00012433,2]
[381112271,1756050637996,-226.0,0.00012478,2]
[381112273,1756050638006,-500.0,0.00012488,2]
[381112274,1756050638016,-301.72158802,0.000125,2]
[381112275,1756050638025,-1000.0,0.00012521,2]
[381112276,1756050638035,-1000.0,0.00012521,2]
[381112277,1756050638045,-711.0,0.0001254,2]
[381112278,1756050638054,-151.0,0.00012541,2]
[381112279,1756050638069,-500.0,0.00012543,2]
[381112280,1756050638079,-500.0,0.00012598,2]
[381112281,1756050638089,-159355.8137253,0.00012609,2]
[381112282,1756050638099,-5110.6620469,0.00012609,2]
[381112283,1756050638109,-3469.62964,0.00012609,2]
[381112284,1756050638119,-573.0,0.00012624,2]
[381112285,1756050638128,-35557.0882371,0.00012747,2]
[381112286,1756050638142,-1140.3428409,0.00012747,2]
[381112287,1756050638152,-774.1790172,0.00012747,2]
[381112288,1756050638162,-3402.58144,0.0001282,2]
[381112289,1756050638172,-1000.0,0.00012882,2]
[381112290,1756050638183,-570.11335256,0.00012966,2]
[381112291,1756050638192,-300.0,0.00012979,2]
[381112292,1756050638202,-300.0,0.0001298,2]
[381112293,1756050638212,-150.0,0.0001298,2]
[381112294,1756050638222,-250.0,0.0001298,2]
[381112295,1756050638232,-255.0,0.00012981,2]
[381112296,1756050638242,-89797.90415624,0.00013,2]
[381112297,1756050638659,-420.0,0.00013063,2]
[381112298,1756050638674,-21626.55382155,0.00013066,2]
[381112299,1756050638684,-14035.65757786,0.00013066,2]
[381112300,1756050638694,-300.0,0.00013068,2]
[381112301,1756050638703,-250.0,0.00013068,2]
[381112302,1756050638712,-1500.0,0.00013068,2]
[381112303,1756050638722,-1500.0,0.00013068,2]
[381112304,1756050638732,-1680.0,0.00013088,2]
[381112305,1756050638744,-166.13773931,0.00013265,2]
[381112306,1756050638754,-3402.58144,0.0001332,2]
[381112307,1756050638765,-1000.0,0.000135,2]
[381112308,1756050638774,-185.00959499,0.00013541,2]
[381112309,1756050638784,-503.42014745,0.00013616,2]
[381112310,1756050638794,-2000.0,0.00013616,2]
[381112311,1756050638803,-500.0,0.00013699,2]
[381112312,1756050638813,-877.56,0.00013699,2]
[381112313,1756050638822,-178.44,0.00013699,2]
[381112314,1756050638832,-6812.09,0.000137,2]